bitfinex/quotes_SOLUSD_20250903
["timestamp","ask_amount","ask_price","bid_price","bid_amount"]
[1756886697709,6.1147173,210.23,210.22,37.00882761]
[1756886697999,6.1147173,210.23,210.22,39.85726523]
[1756886698888,6.1147173,210.23,210.22,39.19726523]
[1756886699208,6.1147173,210.23,210.22,36.34882761]
[1756886699509,6.7847173,210.23,210.22,36.34882761]
[1756886699676,6.1147173,210.23,210.22,36.34882761]
[1756886700601,6.7847173,210.23,210.22,17.01131686]
[1756886700780,9.63315492,210.23,210.22,17.01131686]
[1756886700984,9.63315492,210.23,210.22,3.41572285]
[1756886701178,9.63315492,210.23,210.21,8.17285356]
[1756886701393,6.7847173,210.23,210.22,3.41572285]
[1756886701793,6.7847173,210.23,210.22,17.29564]
[1756886701794,6.1147173,210.23,210.22,17.29564]
[1756886702499,6.1147173,210.23,210.22,25.56099894]
[1756886704003,6.1147173,210.23,210.22,24.90099894]
[1756886704996,6.1147173,210.23,210.22,22.05256132]
[1756886705195,6.7847173,210.23,210.22,28.16727862]
[1756886705499,6.7847173,210.23,210.22,22.05256132]
[1756886706085,6.7847173,210.23,210.22,3.41572285]
[1756886706286,9.63315492,210.23,210.22,3.41572285]
[1756886706477,6.7847173,210.23,210.22,3.41572285]
[1756886707007,9.63315492,210.23,210.22,3.41572285]
[1756886707188,9.63315492,210.23,210.2,13.87991715]
[1756886707389,3.51843762,210.22,210.21,3.42355266]
[1756886707587,3.51843762,210.22,210.2,3.42355266]
[1756886707791,2.84843762,210.22,210.21,3.42355266]
[1756886707995,2.84843762,210.22,210.2,3.42355266]
[1756886708210,2.84843762,210.22,210.21,3.42355266]
[1756886708406,0.67,210.21,210.2,3.42355266]
[1756886710283,3.51843762,210.21,210.2,3.42355266]
[1756886710614,8.27563339,210.21,210.18,250.0]
[1756886710791,2.84843762,210.19,210.18,250.0]
[1756886711106,3.51843762,210.19,210.18,250.0]
[1756886713402,8.27603788,210.19,210.18,250.0]
[1756886713921,26.32175983,210.19,210.18,250.0]
[1756886714085,22.58116626,210.19,210.18,250.0]
[1756886714416,40.41843762,210.19,210.18,250.0]
[1756886715694,0.71,210.22,210.18,250.0]
[1756886715893,3.55843762,210.22,210.2,0.28432314]
[1756886716095,0.71,210.22,210.2,0.28432314]
[1756886716296,3.55843762,210.22,210.2,0.28432314]
[1756886717494,3.55843762,210.21,210.18,250.0]
[1756886717688,2.84843762,210.19,210.18,250.0]
[1756886717894,40.49843762,210.19,210.18,250.0]
[1756886719026,45.25603788,210.19,210.18,250.0]
[1756886721321,45.31603788,210.19,210.18,250.0]
[1756886723319,63.69,210.19,210.18,250.0]
[1756886723523,66.53843762,210.19,210.18,250.0]
[1756886724043,3.61843762,210.19,210.18,250.0]
[1756886724208,40.53843762,210.19,210.18,250.0]
[1756886725113,37.0,210.19,210.18,250.0]
[1756886725409,0.06,210.19,210.18,250.0]
[1756886725622,37.0,210.19,210.18,250.7]
[1756886728135,0.06,210.19,210.18,250.7]
[1756886728335,36.98,210.19,210.18,273.78893502]
[1756886728741,36.98,210.19,210.18,263.87991715]
[1756886728941,36.98,210.19,210.18,268.63774377]
[1756886729116,36.98,210.19,210.18,263.87991715]
[1756886729420,37.0,210.19,210.18,268.63774377]
[1756886730720,0.06,210.19,210.18,269.33774377]
[1756886731444,0.06,210.19,210.18,268.63774377]
[1756886732523,0.06,210.19,210.18,269.33774377]
[1756886732726,0.06,210.19,210.18,273.78893502]
[1756886734847,1e-08,210.19,210.18,273.78893502]
[1756886735518,1e-08,210.19,210.18,279.90365232]
[1756886740342,1e-08,210.19,210.18,359.60365232]
[1756886742638,1e-08,210.19,210.18,355.15246107]
[1756886742829,1e-08,210.19,210.18,359.60365232]
[1756886743031,1e-08,210.19,210.18,396.48365232]
[1756886756156,1e-08,210.19,210.18,359.60365232]
[1756886756457,1e-08,210.19,210.18,355.15246107]
[1756886756631,1e-08,210.19,210.18,396.46365232]
[1756886757153,1e-08,210.19,210.18,396.49365232]
[1756886757462,1e-08,210.19,210.18,396.51365232]
[1756886758259,1e-08,210.19,210.18,316.81365232]
[1756886758761,1e-08,210.19,210.18,279.95365232]
[1756886759063,1e-08,210.19,210.18,316.81365232]
[1756886760058,1e-08,210.22,210.18,328.70821888]
[1756886760363,1e-08,210.22,210.21,44.3311084]
[1756886760539,1e-08,210.22,210.21,81.1711084]
[1756886761266,1e-08,210.22,210.21,83.07682316]
[1756886761761,1e-08,210.22,210.21,87.83397077]
[1756886764052,1e-08,210.22,210.21,167.53397077]
[1756886765156,1e-08,210.23,210.21,168.25397077]
[1756886765364,1e-08,210.23,210.22,60.64802972]
[1756886765748,1e-08,210.23,210.22,59.92802972]
[1756886765954,1e-08,210.23,210.22,61.83374448]
[1756886769957,1e-08,210.23,210.22,141.53374448]
[1756886770158,1e-08,210.23,210.22,137.08255323]
[1756886770359,1e-08,210.23,210.22,141.53374448]
[1756886773473,1e-08,210.23,210.22,137.08255323]
[1756886773783,1e-08,210.23,210.22,141.53374448]
[1756886774381,0.67000001,210.23,210.22,141.53374448]
[1756886774781,0.67000001,210.23,210.22,99.95823009]
[1756886774981,0.67000001,210.23,210.22,98.05251533]
[1756886775158,0.67000001,210.23,210.22,98.1946769]
[1756886775358,0.67000001,210.23,210.22,98.33683847]
[1756886775789,0.67000001,210.23,210.22,18.63683847]
[1756886777477,0.67000001,210.23,210.22,20.54282565]
[1756886777669,0.67000001,210.23,210.22,24.9940169]
[1756886778570,1e-08,210.23,210.22,24.9940169]
[1756886779284,0.67000001,210.23,210.22,24.9940169]
[1756886779478,0.67000001,210.23,210.22,57.38282565]
[1756886779681,0.67000001,210.23,210.22,18.63683847]
[1756886784390,0.67000001,210.23,210.22,23.08802972]
[1756886784990,1e-08,210.23,210.22,61.8340169]
[1756886785492,1e-08,210.23,210.22,57.38282565]
[1756886785786,1e-08,210.23,210.22,62.5540169]
[1756886785967,1e-08,210.23,210.22,141.5340169]
[1756886786168,1e-08,210.23,210.22,137.08282565]
[1756886786399,1e-08,210.23,210.22,142.2540169]
[1756886787973,0.2,210.25,210.24,44.63638594]
[1756886788292,0.2,210.25,210.24,85.92757719]
[1756886788790,0.2,210.25,210.24,87.83311038]
[1756886789172,0.2,210.25,210.24,83.38191913]
[1756886789372,0.2,210.25,210.24,87.83311038]
[1756886789676,0.2,210.25,210.24,86.22823174]
[1756886790898,0.06,210.26,210.25,13.87991715]
[1756886792069,0.06,210.26,210.25,21.48247232]
[1756886792498,0.06,210.26,210.25,58.32247232]
[1756886793293,0.73,210.26,210.25,58.32247232]
[1756886794276,0.06,210.26,210.25,58.32247232]
[1756886802203,0.06,210.26,210.25,61.16878493]
[1756886803104,0.06,210.29,210.25,73.74939135]
[1756886803402,0.06,210.29,210.27,16.72622976]
[1756886803598,0.06,210.29,210.28,50.69991715]
[1756886803799,0.06,210.29,210.28,57.14567899]
[1756886804298,0.06,210.29,210.28,25.08124299]
[1756886804498,0.06,210.29,210.28,61.90124299]
[1756886805204,0.78,210.29,210.28,25.08124299]
[1756886805404,0.78,210.29,210.28,61.90124299]
[1756886806507,0.78,210.29,210.28,25.08124299]
[1756886807008,3.62631261,210.29,210.28,61.90124299]
[1756886807522,3.62631261,210.29,210.28,20.04135585]
[1756886807682,3.62631261,210.29,210.28,13.59559401]
[1756886807882,3.62631261,210.29,210.28,13.87991715]
[1756886808106,3.62631261,210.29,210.28,25.26516759]
[1756886808316,3.62631261,210.29,210.28,24.98084445]
[1756886808617,3.62631261,210.29,210.28,25.26516759]
[1756886808817,3.62631261,210.29,210.28,24.98084445]
[1756886809183,3.62631261,210.29,210.28,25.26516759]
[1756886810311,0.78,210.29,210.28,11.38525044]
[1756886810605,0.78,210.29,210.27,0.28432314]
[1756886810606,3.62631261,210.29,210.27,0.28432314]
[1756886810783,3.56631261,210.28,210.27,0.28432314]
[1756886811604,0.72,210.28,210.27,0.28432314]
[1756886811811,3.56631261,210.28,210.27,5.04011331]
[1756886812684,3.56631261,210.28,210.23,0.28432314]
[1756886812895,3.56631261,210.28,210.22,2.87631261]
[1756886812896,2.84631261,210.26,210.25,13.87991715]
[1756886813208,3.56631261,210.26,210.25,13.87991715]
[1756886813399,3.56631261,210.26,210.25,16.72622976]
[1756886813802,0.72,210.26,210.25,21.48247232]
[1756886814001,3.56631261,210.26,210.25,21.48247232]
[1756886814588,3.56631261,210.26,210.25,16.72622976]
[1756886816119,0.72,210.26,210.25,16.72622976]
[1756886816303,3.56631261,210.26,210.25,21.48247232]
[1756886816493,0.06,210.29,210.25,58.99247232]
[1756886816698,3.62631261,210.29,210.25,58.99247232]
[1756886816941,3.62631261,210.29,210.25,58.30247232]
[1756886816942,0.06,210.29,210.25,58.30247232]
[1756886817098,0.72,210.28,210.26,11.38525044]
[1756886817914,0.72,210.28,210.27,4.75579017]
[1756886818598,0.72,210.28,210.27,7.60210278]
[1756886819318,0.06,210.29,210.28,13.87991715]
[1756886819502,0.78,210.29,210.28,13.87991715]
[1756886819700,0.78,210.29,210.28,5.03988714]
[1756886819902,0.78,210.29,210.28,11.48564898]
[1756886820107,0.06,210.29,210.28,11.48564898]
[1756886820825,3.62631261,210.29,210.28,20.32567899]
[1756886821624,3.62631261,210.29,210.25,0.31432314]
[1756886821933,3.62631261,210.29,210.27,6.58792341]
[1756886821934,0.78,210.29,210.27,6.58792341]
[1756886822113,0.72,210.28,210.27,20.32567899]
[1756886822415,0.72,210.28,210.27,13.87991715]
[1756886822618,0.72,210.28,210.27,20.32567899]
[1756886823413,3.56631261,210.28,210.27,6.44576184]
[1756886823613,3.56631261,210.28,210.25,0.03]
[1756886823925,2.84631261,210.26,210.25,0.03]
[1756886824317,3.56631261,210.26,210.25,0.03]
[1756886824519,3.56631261,210.26,210.25,0.31432314]
[1756886824911,3.56631261,210.26,210.25,16.75622976]
[1756886828743,0.06,210.29,210.27,0.28432314]
[1756886830043,0.06,210.29,210.28,27.19118802]
[1756886830543,0.06,210.29,210.28,31.94675202]
[1756886831708,2.90631261,210.29,210.28,31.94675202]
[1756886832007,0.06,210.29,210.28,31.94675202]
[1756886833829,0.75,210.29,210.28,31.94675202]
[1756886834335,3.59631261,210.29,210.28,27.47551116]
[1756886834512,3.59631261,210.29,210.25,250.03]
[1756886834717,0.69,210.28,210.26,13.59559401]
[1756886834921,0.06,210.29,210.27,6.44576184]
[1756886835434,0.69,210.28,210.27,6.44576184]
[1756886835822,3.53631261,210.28,210.27,6.44576184]
[1756886836329,3.53631261,210.28,210.26,13.62559401]
[1756886836526,0.69,210.27,210.26,20.35567899]
[1756886836909,3.53631261,210.27,210.26,20.35567899]
[1756886844933,2.84631261,210.27,210.26,20.35567899]
[1756886845625,3.53631261,210.27,210.26,25.11169535]
[1756886846830,3.53631261,210.27,210.26,20.35567899]
[1756886847722,3.53631261,210.27,210.26,25.11169535]
[1756886847920,3.53631261,210.27,210.26,20.35567899]
[1756886851437,5.13895885,210.27,210.26,20.35567899]
[1756886854321,4.44895885,210.27,210.26,25.11169535]
[1756886854839,0.06,210.29,210.27,0.28432314]
[1756886855049,0.06,210.29,210.28,13.87991715]
[1756886855422,0.06,210.29,210.28,25.45463784]
[1756886856741,0.06,210.29,210.28,25.76124299]
[1756886856961,0.06,210.29,210.28,25.08124299]
[1756886858235,0.06,210.29,210.28,29.53020184]
[1756886858838,0.06,210.29,210.28,30.21020184]
[1756886859442,0.06,210.29,210.28,29.53020184]
[1756886859641,0.06,210.29,210.28,25.08124299]
[1756886860147,5.19895885,210.29,210.28,6.44576184]
[1756886860325,5.19895885,210.29,210.26,0.03]
[1756886860531,4.44895885,210.28,210.26,0.03]
[1756886861048,0.69,210.27,210.26,0.03]
[1756886861761,0.06,210.29,210.26,0.03]
[1756886861988,0.66,210.28,210.26,0.03]
[1756886862128,0.66,210.27,210.26,0.03]
[1756886866655,0.66,210.27,210.26,4.47895885]
[1756886866866,5.10895885,210.27,210.26,4.47895885]
[1756886867761,0.66,210.27,210.26,4.47895885]
[1756886868259,5.10895885,210.27,210.26,4.47895885]
[1756886870550,0.66,210.27,210.26,4.47895885]
[1756886870950,5.10895885,210.27,210.26,4.47895885]
[1756886871651,0.66,210.27,210.26,4.47895885]
[1756886871959,0.06,210.29,210.28,0.28432314]
[1756886872168,0.06,210.29,210.28,4.73328199]
[1756886872571,0.06,210.29,210.28,11.17904383]
[1756886873254,0.06,210.29,210.28,11.48564898]
[1756886873449,0.06,210.29,210.28,12.15564898]
[1756886873862,0.06,210.29,210.28,11.48564898]
[1756886875855,0.06,210.29,210.28,6.73008498]
[1756886876065,0.72,210.29,210.28,20.32567899]
[1756886876851,0.72,210.29,210.28,25.08124299]
[1756886877258,0.06,210.29,210.28,25.08124299]
[1756886880272,0.06,210.29,210.28,20.32567899]
[1756886880473,0.06,210.29,210.28,25.08124299]
[1756886880652,0.72,210.29,210.28,20.32567899]
[1756886882970,0.06,210.29,210.28,6.73008498]
[1756886883164,0.72,210.29,210.28,6.73008498]
[1756886883663,0.06,210.29,210.28,6.73008498]
[1756886884382,0.06,210.29,210.28,11.48564898]
[1756886886379,0.06,210.29,210.28,25.75124299]
[1756886886558,0.06,210.29,210.28,30.20020184]
[1756886887381,0.06,210.29,210.28,25.75124299]
[1756886888250,0.06,210.29,210.28,30.20020184]
[1756886888673,0.06,210.29,210.28,66.98020184]
[1756886890389,0.06,210.32,210.3,0.28432314]
[1756886890558,0.06,210.32,210.31,14.54991715]
[1756886891057,0.06,210.32,210.31,31.65582655]
[1756886891255,0.72,210.32,210.31,31.65582655]
[1756886891470,0.72,210.32,210.31,17.91807097]
[1756886891471,5.16895885,210.32,210.31,17.91807097]
[1756886891655,0.06,210.32,210.31,3.48509125]
[1756886891855,0.06,210.32,210.31,17.7759094]
[1756886892079,5.17895885,210.32,210.31,18.06023254]
[1756886892289,5.17895885,210.32,210.31,3.48509125]
[1756886892458,5.17895885,210.32,210.3,0.14216157]
[1756886892768,5.11895885,210.31,210.3,0.14216157]
[1756886892972,5.11895885,210.31,210.3,3.62594319]
[1756886893179,5.11895885,210.31,210.3,3.76810476]
[1756886894375,0.67,210.31,210.3,3.76810476]
[1756886894685,5.11895885,210.31,210.3,3.76810476]
[1756886896477,5.11895885,210.31,210.29,0.28432314]
[1756886896662,5.11895885,210.31,210.28,14.29217979]
[1756886896663,4.44895885,210.3,210.28,0.28432314]
[1756886896864,5.42494097,210.31,210.29,3.48574179]
[1756886897081,0.67,210.3,210.28,0.14216157]
[1756886897263,4.81468041,210.32,210.29,3.48607671]
[1756886897463,0.06,210.32,210.28,0.14216157]
[1756886897663,0.06,210.32,210.29,3.48605057]
[1756886897886,0.67,210.31,210.28,0.14216157]
[1756886898079,4.44895885,210.3,210.29,3.4860536]
[1756886898271,41.89895885,210.3,210.27,6.84846129]
[1756886898471,4.44895885,210.28,210.27,6.84846129]
[1756886898895,5.11895885,210.28,210.26,0.03]
[1756886899671,4.44895885,210.27,210.26,0.03]
[1756886900291,5.11895885,210.27,210.26,0.03]
[1756886900489,5.11895885,210.3,210.26,13.90991715]
[1756886900691,36.78,210.3,210.27,3.48825684]
[1756886900866,0.06,210.32,210.27,3.48825684]
[1756886900867,0.73,210.32,210.28,0.28432314]
[1756886901195,0.67,210.31,210.28,0.28432314]
[1756886901393,41.28895885,210.32,210.29,3.48034718]
[1756886901394,36.84,210.32,210.29,3.48034718]
[1756886901562,41.95895885,210.32,210.3,3.48034718]
[1756886901767,0.67,210.31,210.28,0.28432314]
[1756886901981,0.67,210.31,210.29,3.48034535]
[1756886902271,0.67,210.31,210.3,3.48034535]
[1756886903492,0.67,210.31,210.28,7.13278443]
[1756886903493,5.11895885,210.31,210.28,7.13278443]
[1756886903796,4.44895885,210.31,210.29,3.48214834]
[1756886904098,36.84,210.32,210.29,0.67]
[1756886904293,41.28895885,210.32,210.28,20.72837844]
[1756886904496,41.95895885,210.32,210.29,3.48216613]
[1756886904674,0.67,210.31,210.28,20.72837844]
[1756886904999,0.06,210.32,210.3,13.87991715]
[1756886905891,0.06,210.32,210.3,0.95432314]
[1756886906077,0.06,210.32,210.3,0.28432314]
[1756886906694,0.06,210.32,210.3,5.03940594]
[1756886907596,0.06,210.32,210.3,0.28432314]
[1756886907967,5.17895885,210.32,210.3,0.28432314]
[1756886909377,0.06,210.32,210.3,0.28432314]
[1756886909779,0.73,210.32,210.3,0.28432314]
[1756886911377,5.17895885,210.32,210.3,0.28432314]
[1756886911596,0.06,210.32,210.3,0.28432314]
[1756886911987,0.06,210.32,210.3,5.03940143]
[1756886912300,0.06,210.32,210.31,17.38585074]
[1756886916697,2.90609239,210.32,210.31,17.38585074]
[1756886917088,0.06,210.32,210.31,17.38585074]
[1756886920894,0.06,210.32,210.31,25.65682877]
[1756886921486,0.06,210.32,210.31,22.81073638]
[1756886921802,0.06,210.32,210.31,25.65682877]
[1756886922582,0.06,210.32,210.31,32.50529006]
[1756886922784,0.06,210.32,210.31,29.65919767]
[1756886922985,0.06,210.34,210.33,18.63435065]
[1756886923192,0.06,210.34,210.33,61.78637663]
[1756886923592,0.06,210.35,210.34,39.87991715]
[1756886923793,0.06,210.35,210.34,46.92194313]
[1756886924007,0.06,210.35,210.34,83.72194313]
[1756886924204,1e-08,210.35,210.34,123.77585074]
[1756886924388,1e-08,210.35,210.34,163.42194313]
[1756886924784,1e-08,210.35,210.34,83.74194313]
[1756886924989,1e-08,210.35,210.34,88.4961506]
[1756886925598,1e-08,210.35,210.34,51.6761506]
[1756886925913,1e-08,210.35,210.34,91.32224299]
[1756886926090,1e-08,210.35,210.34,54.52224299]
[1756886926290,1e-08,210.35,210.34,91.32224299]
[1756886926906,1e-08,210.35,210.34,54.52224299]
[1756886927293,1e-08,210.35,210.34,51.6761506]
[1756886927501,1e-08,210.35,210.34,91.32224299]
[1756886928215,1e-08,210.35,210.34,54.52224299]
[1756886928587,1e-08,210.35,210.34,91.30224299]
[1756886930208,1e-08,210.35,210.34,171.00224299]
[1756886932302,1e-08,210.35,210.34,170.31224299]
[1756886932607,1e-08,210.35,210.34,133.53224299]
[1756886932909,1e-08,210.35,210.34,170.29224299]
[1756886933283,1e-08,210.35,210.34,133.53224299]
[1756886933487,1e-08,210.35,210.34,167.4461506]
[1756886933692,1e-08,210.35,210.34,170.29224299]
[1756886934386,1e-08,210.35,210.34,170.98224299]
[1756886934584,1e-08,210.35,210.34,170.29224299]
[1756886935990,1e-08,210.35,210.34,90.59224299]
[1756886936709,1e-08,210.35,210.34,91.28224299]
[1756886937090,1e-08,210.35,210.34,90.59224299]
[1756886937615,1e-08,210.35,210.34,91.28224299]
[1756886937995,1e-08,210.35,210.34,65.28224299]
[1756886938810,1e-08,210.35,210.34,28.52224299]
[1756886938998,1e-08,210.35,210.34,27.83224299]
[1756886939203,1e-08,210.35,210.34,90.59224299]
[1756886939812,1e-08,210.35,210.34,50.9861506]
[1756886939987,1e-08,210.35,210.34,53.83224299]
[1756886940187,1e-08,210.35,210.34,24.9861506]
[1756886940386,0.68000001,210.35,210.34,60.78198626]
[1756886940595,1e-08,210.35,210.34,60.78198626]
[1756886940796,1e-08,210.35,210.34,64.55299711]
[1756886942007,1e-08,210.35,210.34,65.24299711]
[1756886942211,1e-08,210.35,210.34,156.32736667]
[1756886942520,0.06,210.38,210.37,39.59559401]
[1756886942723,0.06,210.38,210.37,82.97269725]
[1756886943426,0.06,210.38,210.37,85.81878964]
[1756886943927,0.06,210.38,210.37,90.57231913]
[1756886944813,1e-08,210.38,210.37,170.96231913]
[1756886947618,0.68,210.44,210.42,13.59559401]
[1756886947814,2.84609239,210.51,210.45,0.28432314]
[1756886948013,8.90306611,210.51,210.45,3.13041553]
[1756886948531,0.68,210.5,210.45,3.13041553]
[1756886948724,0.68,210.49,210.45,3.13041553]
[1756886948917,0.68,210.48,210.45,7.88202744]
[1756886949227,0.68,210.47,210.45,7.88202744]
[1756886949407,0.68,210.46,210.45,21.47762145]
[1756886950228,0.68,210.46,210.45,18.63152906]
[1756886952232,0.68,210.46,210.45,21.47762145]
[1756886954417,0.68,210.46,210.45,18.63152906]
[1756886954618,0.68,210.46,210.45,21.47762145]
[1756886955433,0.68,210.46,210.45,18.63152906]
[1756886955939,0.68,210.46,210.45,21.47762145]
[1756886956641,0.68,210.46,210.45,18.63152906]
[1756886957017,0.68,210.46,210.45,13.87991715]
[1756886958911,0.68,210.46,210.45,18.63163964]
[1756886959735,0.68,210.46,210.45,13.87991715]
[1756886961641,0.69,210.49,210.47,0.28432314]
[1756886961815,0.69,210.49,210.48,13.87991715]
[1756886962014,3.53609239,210.49,210.45,14.27925462]
[1756886962229,3.53609239,210.48,210.46,0.28432314]
[1756886963742,3.53609239,210.48,210.41,26.0]
[1756886963743,2.84609239,210.47,210.41,26.0]
[1756886963929,3.53609239,210.46,210.43,13.59559401]
[1756886964130,0.69,210.45,210.44,0.28432314]
[1756886966941,6.05697372,210.51,210.44,0.28432314]
[1756886966942,0.06,210.48,210.44,25.66384887]
[1756886967142,0.06,210.48,210.47,0.28432314]
[1756886967832,0.75,210.48,210.47,13.87991715]
[1756886968936,0.75,210.48,210.47,0.28432314]
[1756886969225,0.75,210.48,210.47,13.87991715]
[1756886970424,0.75,210.48,210.47,0.28432314]
[1756886970620,0.75,210.48,210.47,13.87991715]
[1756886972149,0.75,210.48,210.47,0.28432314]
[1756886972320,0.75,210.48,210.47,13.87991715]
[1756886972824,3.59609239,210.48,210.45,13.59559401]
[1756886973035,2.84609239,210.46,210.42,13.87991715]
[1756886973236,0.69,210.45,210.44,6.05697372]
[1756886973532,5.13136641,210.45,210.43,3.48943879]
[1756886973738,4.44136641,210.45,210.44,0.28432314]
[1756886973937,4.44136641,210.46,210.44,0.28432314]
[1756886974334,0.69,210.45,210.44,0.28432314]
[1756886980251,0.69,210.45,210.44,3.77411741]
[1756886981031,0.69,210.45,210.43,3.48979427]
[1756886981032,5.13136641,210.45,210.43,3.48979427]
[1756886981254,5.13136641,210.44,210.39,3.49467735]
[1756886981434,4.44136641,210.41,210.37,9.19489371]
[1756886981630,0.68,210.45,210.4,18.03696042]
[1756886981947,0.74,210.48,210.44,13.87991715]
[1756886982144,0.74,210.48,210.44,18.32128356]
[1756886982330,0.68,210.47,210.44,18.32128356]
[1756886982525,0.68,210.47,210.44,13.87991715]
[1756886982846,0.68,210.47,210.44,0.28432314]
[1756886983156,0.06,210.48,210.46,18.32128356]
[1756886983333,0.06,210.48,210.45,5.43172249]
[1756886983334,0.06,210.48,210.47,18.32128356]
[1756886983529,0.06,210.48,210.47,13.87991715]
[1756886983729,0.68,210.47,210.43,20.61689087]
[1756886983943,5.12136641,210.46,210.43,7.02129686]
[1756886984150,0.68,210.45,210.43,0.28432314]
[1756886984352,0.06,210.48,210.43,0.28432314]
[1756886984353,4.44136641,210.47,210.43,0.28432314]
[1756886984849,0.68,210.46,210.43,0.28432314]
[1756886985030,4.44136641,210.47,210.43,0.28432314]
[1756886985231,4.44136641,210.46,210.43,0.28432314]
[1756886985645,0.68,210.45,210.43,0.28432314]
[1756886985845,0.68,210.44,210.42,0.28432314]
[1756886986249,5.12136641,210.43,210.38,0.03]
[1756886986553,5.12136641,210.43,210.4,0.28432314]
[1756886986756,0.68,210.43,210.4,0.28432314]
[1756886986942,4.81108361,210.48,210.4,0.28432314]
[1756886986943,4.44136641,210.42,210.4,0.28432314]
[1756886987138,4.44136641,210.42,210.41,13.87991715]
[1756886987750,5.12136641,210.42,210.39,4.75305407]
[1756886987935,4.44136641,210.41,210.4,0.28432314]
[1756886988139,5.12136641,210.41,210.4,0.28432314]
[1756886988330,0.68,210.41,210.4,0.28432314]
[1756886988753,5.12136641,210.41,210.4,0.28432314]
[1756886989567,4.62136641,210.41,210.4,0.28432314]
[1756886989860,0.18,210.41,210.4,0.28432314]
[1756886990058,4.62136641,210.41,210.39,0.28432314]
[1756886990255,4.44136641,210.4,210.39,0.28432314]
[1756886990561,4.75173316,210.45,210.39,0.28432314]
[1756886990873,4.44136641,210.4,210.39,0.28432314]
[1756886993359,5.12136641,210.4,210.38,0.03]
[1756886993567,5.12136641,210.39,210.38,0.31432314]
[1756886995276,4.44136641,210.39,210.38,0.31432314]
[1756886996962,0.68,210.4,210.38,0.31432314]
[1756886997264,0.68,210.4,210.38,0.03]
[1756886997265,5.12136641,210.39,210.38,0.03]
[1756886997658,9.87444402,210.39,210.38,0.03]
[1756886998172,5.12136641,210.39,210.38,0.03]
[1756886999560,36.74,210.39,210.38,0.03]
[1756886999860,41.18136641,210.39,210.38,0.03]
[1756887000655,46.61444402,210.39,210.38,0.03]
[1756887002663,9.87444402,210.39,210.38,0.03]
[1756887002869,46.61444402,210.39,210.38,0.03]
[1756887003252,9.87444402,210.39,210.38,0.03]
[1756887003578,51.05581043,210.39,210.38,0.03]
[1756887003749,26.0,210.37,210.36,250.0]
[1756887003949,35.56273282,210.37,210.36,250.0]
[1756887004474,40.31626231,210.37,210.36,250.0]
[1756887004861,40.31626231,210.37,210.36,198.34917666]
[1756887005450,44.19012712,210.37,210.36,144.73755179]
[1756887005657,44.19012712,210.37,210.36,120.60072675]
[1756887005976,44.19012712,210.37,210.36,18.37012269]
[1756887006176,20.0,210.36,210.35,0.03]
[1756887006352,28.88273282,210.36,210.35,0.03]
[1756887006552,34.31648828,210.36,210.35,0.03]
[1756887006874,26.0,210.34,210.31,0.03]
[1756887007056,62.74,210.34,210.31,0.03]
[1756887007252,63.42,210.34,210.31,0.03]
[1756887007472,67.86136641,210.34,210.31,0.03]
[1756887007969,4.44136641,210.32,210.31,0.03]
[1756887008350,26.0,210.3,210.29,0.03]
[1756887008563,67.20136641,210.3,210.29,0.03]
[1756887008873,72.63647815,210.3,210.29,0.03]
[1756887010375,35.87647815,210.3,210.29,0.03]
[1756887010555,72.63647815,210.3,210.29,0.03]
[1756887010963,35.87647815,210.3,210.29,0.03]
[1756887011258,72.63647815,210.3,210.29,0.03]
[1756887012362,84.52425751,210.3,210.24,0.03]
[1756887012564,4.44136641,210.27,210.24,0.03]
[1756887012764,47.79466837,210.27,210.24,0.03]
[1756887012963,48.48466837,210.27,210.24,0.03]
[1756887013560,53.24045854,210.27,210.24,0.03]
[1756887013758,16.48045854,210.27,210.24,0.03]
[1756887013974,15.79045854,210.27,210.26,0.72]
[1756887014174,48.10909213,210.27,210.26,0.72]
[1756887014360,47.79466837,210.27,210.26,0.03]
[1756887015285,52.55045854,210.27,210.26,0.03]
[1756887016585,53.24045854,210.27,210.26,0.03]
[1756887023082,57.68182495,210.27,210.24,0.03]
[1756887023389,9.57273282,210.26,210.24,0.03]